[Event "Shanghai COITCT 2019"]
[Site "Shanghai"]
[Date "2019.09.17"]
[Round "6.9"]
[White "Zarubitski, Viachaslau"]
[Black "Waqar, Ahmad Madni"]
[Result "1-0"]
[ECO "B90"]
[WhiteElo "2435"]
[BlackElo "1979"]
[Annotator "ChessBase"]
[PlyCount "93"]
[EventDate "2019.09.15"]
[EventType "team-tourn"]
[EventCountry "CHN"]
[SourceTitle "playchess.com"]
[Source "ChessBase"]
[SourceQuality "1"]
[TimeControl "1500+10"]

1. e4 {[%emt 0:00:00]} c5 {[%emt 0:00:00]} 2. Nf3 {[%emt 0:00:00]} d6 {[%emt 0:00:00]} 3. d4 {[%emt 0:00:00]} cxd4 {[%emt 0:00:00]} 4. Nxd4 {[%emt 0:00:00]} Nf6 {[%emt 0:00:00]} 5. Nc3 {[%emt 0:00:00]} a6 {[%emt 0:00:00]} 6. Be3 {[%emt 0:00:00]} e5 {[%emt 0:00:00]} 7. Nb3 {[%emt 0:00:00]} Be6 {[%emt 0:00:00]} 8. Qd2 {[%emt 0:00:01]} Nbd7 {[%emt 0:00:01]} 9. O-O-O {[%emt 0:00:06]} Qc7 {[%emt 0:00:04]} 10. f4 {[%emt 0:00:13]} Be7 {[%emt 0:00:07]} 11. Kb1 {[%emt 0:00:21]} Rc8 {[%emt 0:00:12]} 12. h3 {[%emt 0:00:11]} h5 {[%emt 0:00:03]} 13. f5 {[%emt 0:00:12]} Bc4 {[%emt 0:00:02]} 14. Bd3 {[%emt 0:00:01]} b5 {[%emt 0:00:03]} 15. Qf2 {[%emt 0:01:07]} b4 {[%emt 0:01:01]} 16. Na4 {[%emt 0:01:31]} d5 {[%emt 0:04:37]} 17. Nb6 {[%emt 0:01:47]} Nxb6 {[%emt 0:06:49]} 18. Bxb6 {[%emt 0:00:02]} Qc6 {[%emt 0:00:40]} 19. Na5 {[%emt 0:03:20]} Qb5 {[%emt 0:00:24]} 20. exd5 {[%emt 0:00:23]} Bxd3 {[%emt 0:00:16]} 21. Rxd3 {[%emt 0:00:02]} Nxd5 {[%emt 0:00:30]} 22. f6 {[%emt 0:05:30]} gxf6 {[%emt 0:02:05]} 23. Ba7 {[%emt 0:06:47]} Qxa5 {[%emt 0:01:35]} 24. Qf5 {[%emt 0:00:03]} Rd8 {[%emt 0:03:26]} 25. Rhd1 {[%emt 0:00:01]} Rg8 {[%emt 0:00:57]} 26. g4 {[%emt 0:02:59]} hxg4 {[%emt 0:00:43]} 27. hxg4 {[%emt 0:00:03]} Qb5 {[%emt 0:00:35]} 28. Qh7 {[%emt 0:01:25]} Rxg4 {[%emt 0:01:37]} 29. Ka1 {[%emt 0:00:16]} Qc4 {[%emt 0:00:53]} 30. Bb6 {[%emt 0:01:07]} Rd6 {[%emt 0:00:29]} 31. Qh8+ {[%emt 0:00:07]} Bf8 {[%emt 0:00:09]} 32. Bf2 {[%emt 0:01:19]} Qxc2 {[%emt 0:00:22]} 33. R3d2 {[%emt 0:00:02]} Qc4 {[%emt 0:00:24]} 34. Qh1 {[%emt 0:00:15]} e4 {[%emt 0:00:08]} 35. Rc1 {[%emt 0:00:00]} Qb5 {[%emt 0:00:14]} 36. Qd1 {[%emt 0:01:04]} Rg5 {[%emt 0:00:13]} 37. Bh4 {[%emt 0:00:04]} Rf5 {[%emt 0:00:16]} 38. Bg3 {[%emt 0:00:19]} Rd7 {[%emt 0:00:08]} 39. Rd4 {[%emt 0:00:30]} Ne3 {[%emt 0:00:36]} 40. Rc8+ {[%emt 0:00:19]} Ke7 {[%emt 0:00:10]} 41. Rxe4+ {[%emt 0:00:10]} Re5 {[%emt 0:00:01]} 42. Qb1 {[%emt 0:00:12]} Qd5 {[%emt 0:00:17]} 43. Bxe5 {[%emt 0:00:03]} fxe5 {[%emt 0:00:02]} 44. Rxe3 {[%emt 0:00:01]} Bh6 {[%emt 0:00:39]} 45. Re1 {[%emt 0:00:13]} f6 {[%emt 0:00:13]} 46. Qh7+ {[%emt 0:00:07]} Ke6 {[%emt 0:00:13]} 47. Qxh6 {[%emt 0:00:01]} 1-0

[Event "Shanghai COITCT 2019"]
[Site "Shanghai"]
[Date "2019.09.17"]
[Round "6.13"]
[White "Venkatesh, M.R."]
[Black "Nigmatov, Ortik"]
[Result "0-1"]
[ECO "B07"]
[WhiteElo "2481"]
[BlackElo "2482"]
[Annotator "ChessBase"]
[PlyCount "66"]
[EventDate "2019.09.15"]
[EventType "team-tourn"]
[EventCountry "CHN"]
[SourceTitle "playchess.com"]
[Source "ChessBase"]
[SourceQuality "1"]
[TimeControl "1500+10"]

1. Nf3 {[%emt 0:00:00]} Nf6 {[%emt 0:00:00]} 2. g3 {[%emt 0:00:00]} g6 {[%emt 0:00:00]} 3. Bg2 {[%emt 0:00:00]} Bg7 {[%emt 0:00:00]} 4. d4 {[%emt 0:00:01]} O-O {[%emt 0:00:00]} 5. O-O {[%emt 0:00:02]} d6 {[%emt 0:00:00]} 6. a4 {[%emt 0:00:02]} c6 {[%emt 0:00:00]} 7. Re1 {[%emt 0:00:03]} Qc7 {[%emt 0:00:03]} 8. e4 {[%emt 0:00:20]} e5 {[%emt 0:00:04]} 9. Nc3 {[%emt 0:00:04]} Nbd7 {[%emt 0:00:06]} 10. h3 {[%emt 0:00:09]} Re8 {[%emt 0:00:06]} 11. Be3 {[%emt 0:03:00]} b6 {[%emt 0:00:15]} 12. Qd2 {[%emt 0:05:12]} Rb8 {[%emt 0:00:26]} 13. Rad1 {[%emt 0:00:23]} a6 {[%emt 0:00:18]} 14. Bh6 {[%emt 0:01:35]} b5 {[%emt 0:00:55]} 15. axb5 {[%emt 0:00:23]} axb5 {[%emt 0:00:01]} 16. Nh4 {[%emt 0:01:40]} Bxh6 {[%emt 0:03:36]} 17. Qxh6 {[%emt 0:00:18]} exd4 {[%emt 0:00:03]} 18. Ne2 {[%emt 0:02:29]} c5 {[%emt 0:00:43]} 19. Nf4 {[%emt 0:00:03]} Bb7 {[%emt 0:00:42]} 20. g4 {[%emt 0:00:08]} Qd8 {[%emt 0:07:58]} 21. g5 {[%emt 0:01:06]} Nxe4 {[%emt 0:00:28]} 22. Nf3 {[%emt 0:08:19]} Ne5 {[%emt 0:00:46]} 23. Re2 {[%emt 0:01:13]} Nxf3+ {[%emt 0:03:15]} 24. Bxf3 {[%emt 0:00:02]} Re5 {[%emt 0:01:15]} 25. h4 {[%emt 0:00:56]} Qd7 {[%emt 0:00:23]} 26. Nd3 {[%emt 0:01:15]} Re7 {[%emt 0:00:02]} 27. Rde1 {[%emt 0:00:09]} Rbe8 {[%emt 0:00:01]} 28. Bg2 {[%emt 0:00:06]} c4 {[%emt 0:00:34]} 29. Nb4 {[%emt 0:00:33]} Ng3 {[%emt 0:03:21]} 30. Rxe7 {[%emt 0:00:13]} Rxe7 {[%emt 0:00:01]} 31. Ra1 {[%emt 0:00:13]} Nf5 {[%emt 0:00:25]} 32. Bh3 {[%emt 0:00:07]} Qe6 {[%emt 0:00:24]} 33. h5 {[%emt 0:00:15]} Qe4 {[%emt 0:00:07]} 0-1

[Event "Shanghai COITCT 2019"]
[Site "Shanghai"]
[Date "2019.09.17"]
[Round "6.14"]
[White "Kurbonboeva, Sarvinoz"]
[Black "Krishna C R G"]
[Result "1-0"]
[ECO "D13"]
[WhiteElo "2262"]
[BlackElo "2446"]
[Annotator "ChessBase"]
[PlyCount "91"]
[EventDate "2019.09.15"]
[EventType "team-tourn"]
[EventCountry "CHN"]
[SourceTitle "playchess.com"]
[Source "ChessBase"]
[SourceQuality "1"]
[TimeControl "1500+10"]

1. d4 {[%emt 0:00:00]} Nf6 {[%emt 0:00:00]} 2. c4 {[%emt 0:00:00]} c6 {[%emt 0:00:00]} 3. Nf3 {[%emt 0:00:23]} d5 {[%emt 0:00:00]} 4. Nc3 {[%emt 0:00:08]} a6 {[%emt 0:00:00]} 5. cxd5 {[%emt 0:00:13]} cxd5 {[%emt 0:00:00]} 6. Bf4 {[%emt 0:00:03]} Nc6 {[%emt 0:00:01]} 7. Ne5 {[%emt 0:00:16]} Qb6 {[%emt 0:01:05]} 8. Nxc6 {[%emt 0:00:06]} bxc6 {[%emt 0:00:02]} 9. Qd2 {[%emt 0:00:04]} Bf5 {[%emt 0:00:34]} 10. f3 {[%emt 0:00:34]} e6 {[%emt 0:00:11]} 11. a3 {[%emt 0:00:09]} Be7 {[%emt 0:02:03]} 12. Rc1 {[%emt 0:00:11]} Nd7 {[%emt 0:04:07]} 13. e4 {[%emt 0:02:17]} dxe4 {[%emt 0:00:40]} 14. fxe4 {[%emt 0:00:00]} Bg6 {[%emt 0:00:01]} 15. Be2 {[%emt 0:00:01]} O-O {[%emt 0:00:03]} 16. O-O {[%emt 0:00:49]} e5 {[%emt 0:00:24]} 17. Be3 {[%emt 0:00:14]} exd4 {[%emt 0:00:02]} 18. Bxd4 {[%emt 0:00:08]} Bc5 {[%emt 0:00:03]} 19. Bxc5 {[%emt 0:00:51]} Nxc5 {[%emt 0:01:06]} 20. Qe3 {[%emt 0:00:02]} Rab8 {[%emt 0:00:02]} 21. b4 {[%emt 0:00:38]} Nxe4 {[%emt 0:04:57]} 22. Qxb6 {[%emt 0:00:02]} Rxb6 {[%emt 0:00:02]} 23. Na4 {[%emt 0:00:01]} Rbb8 {[%emt 0:00:29]} 24. Rxc6 {[%emt 0:01:49]} Nd2 {[%emt 0:03:31]} 25. Rd1 {[%emt 0:03:19]} Rbd8 {[%emt 0:00:04]} 26. Nc3 {[%emt 0:01:10]} Rfe8 {[%emt 0:01:51]} 27. Rxa6 {[%emt 0:00:57]} h6 {[%emt 0:02:07]} 28. Kf2 {[%emt 0:01:14]} Rd4 {[%emt 0:03:28]} 29. Ke1 {[%emt 0:01:21]} Red8 {[%emt 0:00:02]} 30. Nb5 {[%emt 0:03:49]} R4d7 {[%emt 0:00:55]} 31. Rd6 {[%emt 0:00:22]} Rxd6 {[%emt 0:00:04]} 32. Nxd6 {[%emt 0:00:01]} Nb1 {[%emt 0:00:01]} 33. Nb5 {[%emt 0:01:00]} Ra8 {[%emt 0:01:41]} 34. Kf2 {[%emt 0:04:47]} Ra6 {[%emt 0:00:01]} 35. Rd6 {[%emt 0:00:01]} Ra8 {[%emt 0:00:10]} 36. Bf3 {[%emt 0:00:37]} Rb8 {[%emt 0:00:11]} 37. a4 {[%emt 0:00:22]} Bc2 {[%emt 0:00:01]} 38. Bd1 {[%emt 0:00:11]} Be4 {[%emt 0:00:02]} 39. Bb3 {[%emt 0:00:25]} Kf8 {[%emt 0:00:55]} 40. Rd7 {[%emt 0:00:33]} Bg6 {[%emt 0:00:01]} 41. Rd1 {[%emt 0:00:17]} Rc8 {[%emt 0:00:34]} 42. a5 {[%emt 0:00:43]} Rb8 {[%emt 0:00:01]} 43. Bc4 {[%emt 0:00:28]} Rc8 {[%emt 0:00:01]} 44. Be2 {[%emt 0:00:14]} Ra8 {[%emt 0:00:10]} 45. Bf3 {[%emt 0:00:40]} Ra6 {[%emt 0:00:33]} 46. Rd6 {[%emt 0:00:34]} 1-0

[Event "Shanghai COITCT 2019"]
[Site "Shanghai"]
[Date "2019.09.17"]
[Round "6.15"]
[White "Kulkarni Bhakti"]
[Black "Baymuratova, Sevara"]
[Result "1-0"]
[ECO "D46"]
[WhiteElo "2429"]
[BlackElo "2126"]
[Annotator "NA"]
[PlyCount "26"]
[EventDate "2019.09.15"]
[EventType "team-tourn"]
[EventCountry "CHN"]
[SourceTitle "playchess.com"]
[Source "ChessBase"]
[SourceQuality "1"]
[TimeControl "1500+10"]

1. c4 {[%emt 0:00:00]} d5 {[%emt 0:00:00]} 2. e3 {[%emt 0:00:08]} Nf6 {[%emt 0:00:00]} 3. Nc3 {[%emt 0:00:10]} c6 {[%emt 0:00:00]} 4. Nf3 {[%emt 0:00:10]} b6 {[%emt 0:00:09]} 5. d4 {[%emt 0:00:10]} Bb7 {[%emt 0:00:10]} 6. Bd3 {[%emt 0:00:10]} e6 {[%emt 0:00:10]} 7. Qc2 {[%emt 0:00:10]} Be7 {[%emt 0:00:10]} 8. O-O {[%emt 0:00:10]} Nbd7 {[%emt 0:00:10]} 9. b3 {[%emt 0:00:10]} O-O {[%emt 0:00:10]} 10. Bb2 {[%emt 0:00:10]} Rc8 {[%emt 0:00:10]} 11. Rfe1 {[%emt 0:00:10]} Qc7 {[%emt 0:00:10]} 12. Ne5 {[%emt 0:00:10]} h6 {[%emt 0:00:10]} 13. Nxd7 {[%emt 0:00:10]} Nxd7 {[%emt 0:00:10]} 1-0

[Event "Shanghai COITCT 2019"]
[Site "Shanghai"]
[Date "2019.09.17"]
[Round "7.1"]
[White "Nigmatov, Ortik"]
[Black "Karimov, Alisher"]
[Result "1/2-1/2"]
[ECO "C55"]
[WhiteElo "2482"]
[BlackElo "2251"]
[Annotator "ChessBase"]
[PlyCount "106"]
[EventDate "2019.09.15"]
[EventType "team-tourn"]
[EventCountry "CHN"]
[SourceTitle "playchess.com"]
[Source "ChessBase"]
[SourceQuality "1"]
[TimeControl "1500+10"]

1. e4 {[%emt 0:00:00]} e5 {[%emt 0:00:00]} 2. Nf3 {[%emt 0:00:00]} Nc6 {[%emt 0:00:00]} 3. Bc4 {[%emt 0:00:00]} Nf6 {[%emt 0:00:16]} 4. d3 {[%emt 0:00:00]} h6 {[%emt 0:00:03]} 5. c3 {[%emt 0:00:13]} d6 {[%emt 0:00:10]} 6. O-O {[%emt 0:00:08]} g6 {[%emt 0:00:02]} 7. d4 {[%emt 0:00:01]} Qe7 {[%emt 0:00:04]} 8. dxe5 {[%emt 0:00:14]} Nxe5 {[%emt 0:00:02]} 9. Nxe5 {[%emt 0:00:04]} dxe5 {[%emt 0:00:01]} 10. Qe2 {[%emt 0:01:35]} Bg7 {[%emt 0:00:02]} 11. f3 {[%emt 0:00:11]} O-O {[%emt 0:00:03]} 12. Be3 {[%emt 0:00:02]} Be6 {[%emt 0:00:26]} 13. Nd2 {[%emt 0:00:09]} Nd7 {[%emt 0:00:57]} 14. b4 {[%emt 0:00:25]} Rfd8 {[%emt 0:01:26]} 15. a4 {[%emt 0:02:02]} a5 {[%emt 0:00:56]} 16. Rfb1 {[%emt 0:00:07]} axb4 {[%emt 0:00:14]} 17. cxb4 {[%emt 0:00:09]} Nf8 {[%emt 0:01:44]} 18. a5 {[%emt 0:03:26]} Bxc4 {[%emt 0:00:19]} 19. Qxc4 {[%emt 0:01:41]} Ne6 {[%emt 0:00:02]} 20. b5 {[%emt 0:00:46]} Nd4 {[%emt 0:02:55]} 21. a6 {[%emt 0:00:58]} Bf8 {[%emt 0:06:52]} 22. Nb3 {[%emt 0:01:23]} Qb4 {[%emt 0:03:40]} 23. Qxb4 {[%emt 0:02:16]} Bxb4 {[%emt 0:00:02]} 24. axb7 {[%emt 0:01:02]} Rab8 {[%emt 0:00:48]} 25. Nxd4 {[%emt 0:00:10]} exd4 {[%emt 0:00:02]} 26. Bf4 {[%emt 0:00:17]} Bd6 {[%emt 0:01:09]} 27. Bxd6 {[%emt 0:00:28]} Rxd6 {[%emt 0:01:24]} 28. Ra8 {[%emt 0:00:26]} Rdd8 {[%emt 0:00:01]} 29. Rba1 {[%emt 0:01:13]} Kg7 {[%emt 0:00:06]} 30. Kf2 {[%emt 0:00:01]} Kf6 {[%emt 0:00:12]} 31. Ke2 {[%emt 0:00:05]} Ke7 {[%emt 0:00:49]} 32. R8a7 {[%emt 0:02:31]} Rd6 {[%emt 0:00:26]} 33. R1a6 {[%emt 0:00:01]} d3+ {[%emt 0:01:37]} 34. Kd2 {[%emt 0:00:06]} Ke6 {[%emt 0:00:30]} 35. f4 {[%emt 0:01:36]} Kd7 {[%emt 0:00:04]} 36. g3 {[%emt 0:02:25]} Rd4 {[%emt 0:00:40]} 37. e5 {[%emt 0:00:01]} Rb4 {[%emt 0:00:14]} 38. Ra5 {[%emt 0:00:26]} Rb3 {[%emt 0:00:06]} 39. h3 {[%emt 0:00:54]} h5 {[%emt 0:00:03]} 40. Ra3 {[%emt 0:01:56]} Rxb5 {[%emt 0:00:25]} 41. Rxd3+ {[%emt 0:00:01]} Ke6 {[%emt 0:00:38]} 42. Ra6+ {[%emt 0:00:09]} Ke7 {[%emt 0:00:13]} 43. Rc6 {[%emt 0:01:15]} R8xb7 {[%emt 0:00:05]} 44. Rdc3 {[%emt 0:00:00]} Kd7 {[%emt 0:00:16]} 45. g4 {[%emt 0:00:03]} hxg4 {[%emt 0:00:02]} 46. hxg4 {[%emt 0:00:01]} R5b6 {[%emt 0:00:35]} 47. R6c5 {[%emt 0:00:14]} Rb5 {[%emt 0:00:02]} 48. R5c4 {[%emt 0:00:04]} Rb4 {[%emt 0:00:10]} 49. Ke3 {[%emt 0:00:26]} Rxc4 50. Rxc4 {[%emt 0:00:01]} Rb1 {[%emt 0:00:47]} 51. Kd4 {[%emt 0:00:01]} Rg1 {[%emt 0:00:11]} 52. g5 {[%emt 0:00:20]} Rf1 {[%emt 0:00:21]} 53. Ke4 {[%emt 0:00:38]} Re1+ {[%emt 0:00:02]} 1/2-1/2

[Event "Shanghai COITCT 2019"]
[Site "Shanghai"]
[Date "2019.09.17"]
[Round "7.2"]
[White "Kabilov, Amin"]
[Black "Kurbonboeva, Sarvinoz"]
[Result "1-0"]
[ECO "E97"]
[WhiteElo "2199"]
[BlackElo "2262"]
[Annotator "NA"]
[PlyCount "71"]
[EventDate "2019.09.15"]
[EventType "team-tourn"]
[EventCountry "CHN"]
[SourceTitle "playchess.com"]
[Source "ChessBase"]
[SourceQuality "1"]
[TimeControl "1500+10"]

1. d4 {[%emt 0:00:00]} Nf6 {[%emt 0:00:00]} 2. c4 {[%emt 0:00:00]} g6 {[%emt 0:00:00]} 3. Nc3 {[%emt 0:00:00]} Bg7 {[%emt 0:00:00]} 4. e4 {[%emt 0:00:00]} d6 {[%emt 0:00:02]} 5. Nf3 {[%emt 0:00:00]} O-O {[%emt 0:00:02]} 6. Be2 {[%emt 0:00:00]} e5 {[%emt 0:00:06]} 7. O-O {[%emt 0:00:02]} Nc6 {[%emt 0:00:30]} 8. d5 {[%emt 0:00:03]} Ne7 {[%emt 0:00:01]} 9. b4 {[%emt 0:00:01]} a5 {[%emt 0:00:55]} 10. bxa5 {[%emt 0:00:39]} Rxa5 {[%emt 0:00:05]} 11. a4 {[%emt 0:00:02]} Nh5 {[%emt 0:02:39]} 12. Re1 {[%emt 0:00:05]} f5 {[%emt 0:00:32]} 13. Nd2 {[%emt 0:02:23]} Nf6 {[%emt 0:01:04]} 14. Ba3 {[%emt 0:00:43]} b6 {[%emt 0:01:12]} 15. Bb4 {[%emt 0:00:13]} Ra8 {[%emt 0:00:06]} 16. f3 {[%emt 0:02:02]} f4 {[%emt 0:04:05]} 17. Nb3 {[%emt 0:00:11]} Re8 {[%emt 0:05:31]} 18. Nb5 {[%emt 0:02:03]} Nd7 {[%emt 0:02:27]} 19. a5 {[%emt 0:03:21]} Nc5 {[%emt 0:00:03]} 20. Qc2 {[%emt 0:03:09]} c6 {[%emt 0:00:30]} 21. Nxd6 {[%emt 0:00:15]} Rf8 {[%emt 0:04:33]} 22. Nxc8 {[%emt 0:02:41]} Rxc8 {[%emt 0:00:40]} 23. d6 {[%emt 0:01:05]} Nd5 {[%emt 0:01:17]} 24. Bxc5 {[%emt 0:00:40]} bxc5 {[%emt 0:00:09]} 25. cxd5 {[%emt 0:00:40]} cxd5 {[%emt 0:00:04]} 26. exd5 {[%emt 0:01:38]} Qxd6 {[%emt 0:00:18]} 27. Bc4 {[%emt 0:00:04]} e4 {[%emt 0:01:40]} 28. Ra2 {[%emt 0:01:08]} e3 {[%emt 0:00:11]} 29. a6 {[%emt 0:00:09]} Ra8 {[%emt 0:00:33]} 30. a7 {[%emt 0:00:51]} Rf7 {[%emt 0:00:06]} 31. Ra6 {[%emt 0:00:04]} Qd7 {[%emt 0:00:32]} 32. d6 {[%emt 0:00:04]} Rxa7 {[%emt 0:00:03]} 33. Bxf7+ {[%emt 0:00:06]} Qxf7 {[%emt 0:00:04]} 34. Rxa7 {[%emt 0:00:03]} Qxa7 {[%emt 0:00:01]} 35. Qc4+ {[%emt 0:00:01]} Kh8 {[%emt 0:00:19]} 36. Qxc5 {[%emt 0:00:09]} 1-0

[Event "Shanghai COITCT 2019"]
[Site "Shanghai"]
[Date "2019.09.17"]
[Round "7.3"]
[White "Baymuratova, Sevara"]
[Black "Antonova, Nadezhda"]
[Result "0-1"]
[ECO "E19"]
[WhiteElo "2126"]
[BlackElo "1930"]
[Annotator "NA"]
[PlyCount "88"]
[EventDate "2019.09.15"]
[EventType "team-tourn"]
[EventCountry "CHN"]
[SourceTitle "playchess.com"]
[Source "ChessBase"]
[SourceQuality "1"]
[TimeControl "1500+10"]

1. d4 {[%emt 0:00:00]} Nf6 {[%emt 0:00:00]} 2. c4 {[%emt 0:00:03]} e6 {[%emt 0:00:00]} 3. Nf3 {[%emt 0:00:07]} b6 {[%emt 0:00:18]} 4. g3 {[%emt 0:00:03]} Bb7 {[%emt 0:00:03]} 5. Bg2 {[%emt 0:00:02]} Be7 {[%emt 0:00:14]} 6. O-O {[%emt 0:00:02]} O-O {[%emt 0:00:04]} 7. Nc3 {[%emt 0:01:14]} Ne4 {[%emt 0:00:48]} 8. Qc2 {[%emt 0:01:02]} Nxc3 {[%emt 0:01:09]} 9. Qxc3 {[%emt 0:00:06]} c5 {[%emt 0:00:13]} 10. Rd1 {[%emt 0:04:08]} Bf6 {[%emt 0:00:22]} 11. Qc2 {[%emt 0:00:45]} Qc8 {[%emt 0:05:37]} 12. d5 {[%emt 0:00:45]} e5 {[%emt 0:03:38]} 13. Bh3 {[%emt 0:03:59]} Qd8 {[%emt 0:01:01]} 14. e4 {[%emt 0:01:54]} d6 {[%emt 0:00:35]} 15. Be3 {[%emt 0:00:11]} Na6 {[%emt 0:00:40]} 16. Qe2 {[%emt 0:01:21]} Nc7 {[%emt 0:00:58]} 17. Bg2 {[%emt 0:00:17]} Bc8 {[%emt 0:00:43]} 18. Nd2 {[%emt 0:01:04]} Bd7 {[%emt 0:00:54]} 19. a4 {[%emt 0:00:28]} a6 {[%emt 0:01:25]} 20. b4 {[%emt 0:00:52]} a5 {[%emt 0:03:14]} 21. b5 {[%emt 0:00:58]} g6 {[%emt 0:00:10]} 22. Kh1 {[%emt 0:00:04]} Bg7 {[%emt 0:01:00]} 23. Ra3 {[%emt 0:00:30]} Qe7 {[%emt 0:00:35]} 24. f4 {[%emt 0:01:45]} Rae8 {[%emt 0:00:24]} 25. Rf1 {[%emt 0:01:49]} exf4 {[%emt 0:01:24]} 26. gxf4 {[%emt 0:00:04]} f5 {[%emt 0:00:17]} 27. e5 {[%emt 0:02:33]} dxe5 {[%emt 0:00:24]} 28. fxe5 {[%emt 0:00:02]} Bxe5 {[%emt 0:00:09]} 29. Bg1 {[%emt 0:00:42]} Bd6 {[%emt 0:00:48]} 30. Re3 {[%emt 0:00:10]} Qg7 {[%emt 0:01:13]} 31. Nf3 {[%emt 0:00:37]} f4 {[%emt 0:00:22]} 32. Rxe8 {[%emt 0:00:08]} Rxe8 {[%emt 0:00:02]} 33. Qd2 {[%emt 0:00:13]} g5 {[%emt 0:00:38]} 34. Re1 {[%emt 0:00:37]} g4 {[%emt 0:00:08]} 35. Rxe8+ Nxe8 {[%emt 0:00:01]} 36. Ne1 {[%emt 0:01:00]} f3 {[%emt 0:00:25]} 37. Bf1 {[%emt 0:00:09]} Nf6 {[%emt 0:00:25]} 38. Bd3 {[%emt 0:00:12]} Nh5 {[%emt 0:00:17]} 39. Bf2 {[%emt 0:00:13]} g3 {[%emt 0:00:20]} 40. hxg3 {[%emt 0:00:02]} Nxg3+ {[%emt 0:00:00]} 41. Bxg3 {[%emt 0:00:30]} Qxg3 {[%emt 0:00:03]} 42. Nxf3 {[%emt 0:01:03]} Qxf3+ {[%emt 0:00:07]} 43. Qg2+ {[%emt 0:00:01]} Bg4 {[%emt 0:00:38]} 44. Be4 {[%emt 0:00:23]} Qxg2+ {[%emt 0:00:04]} 0-1

[Event "Shanghai COITCT 2019"]
[Site "Shanghai"]
[Date "2019.09.17"]
[Round "7.4"]
[White "Xu, Yinglun"]
[Black "Venkatesh, M.R."]
[Result "0-1"]
[ECO "E43"]
[WhiteElo "2565"]
[BlackElo "2481"]
[Annotator "ChessBase"]
[PlyCount "90"]
[EventDate "2019.09.15"]
[EventType "team-tourn"]
[EventCountry "CHN"]
[SourceTitle "playchess.com"]
[Source "ChessBase"]
[SourceQuality "1"]
[TimeControl "1500+10"]

1. Nf3 {[%emt 0:00:00]} Nf6 {[%emt 0:00:00]} 2. c4 {[%emt 0:00:00]} e6 {[%emt 0:00:05]} 3. Nc3 {[%emt 0:00:00]} Bb4 {[%emt 0:00:33]} 4. d4 {[%emt 0:00:25]} b6 {[%emt 0:00:21]} 5. e3 {[%emt 0:00:34]} Bb7 {[%emt 0:00:03]} 6. Bd3 {[%emt 0:00:14]} Ne4 {[%emt 0:00:25]} 7. Qc2 {[%emt 0:00:35]} f5 {[%emt 0:00:02]} 8. O-O {[%emt 0:00:38]} Bxc3 {[%emt 0:00:11]} 9. bxc3 {[%emt 0:00:02]} O-O {[%emt 0:00:03]} 10. Ne1 {[%emt 0:01:13]} Ng5 {[%emt 0:04:22]} 11. f3 {[%emt 0:01:23]} Nc6 {[%emt 0:00:17]} 12. Rb1 {[%emt 0:04:45]} Rb8 {[%emt 0:01:58]} 13. g3 {[%emt 0:02:29]} Na5 {[%emt 0:01:13]} 14. Qe2 {[%emt 0:01:04]} c5 {[%emt 0:02:22]} 15. Bd2 {[%emt 0:04:12]} Rc8 {[%emt 0:03:00]} 16. h4 {[%emt 0:02:33]} Nf7 {[%emt 0:00:04]} 17. e4 {[%emt 0:00:02]} Re8 {[%emt 0:02:36]} 18. Kh2 {[%emt 0:03:10]} Ba6 {[%emt 0:00:42]} 19. d5 {[%emt 0:01:22]} Ne5 {[%emt 0:00:27]} 20. Bg5 {[%emt 0:00:07]} Qc7 {[%emt 0:01:18]} 21. Bf4 {[%emt 0:00:01]} exd5 {[%emt 0:00:53]} 22. cxd5 {[%emt 0:00:13]} c4 {[%emt 0:00:02]} 23. Bc2 {[%emt 0:00:09]} d6 {[%emt 0:00:01]} 24. Ba4 {[%emt 0:01:20]} Re7 {[%emt 0:01:02]} 25. Bg5 {[%emt 0:00:22]} Rf7 {[%emt 0:00:01]} 26. exf5 {[%emt 0:00:18]} Nb7 {[%emt 0:00:44]} 27. Bc2 {[%emt 0:00:38]} Re8 {[%emt 0:00:07]} 28. f4 {[%emt 0:00:25]} h6 {[%emt 0:02:35]} 29. fxe5 {[%emt 0:00:02]} Rxe5 {[%emt 0:00:05]} 30. Be3 {[%emt 0:00:17]} Qe7 {[%emt 0:00:02]} 31. Ng2 {[%emt 0:00:05]} Nc5 {[%emt 0:00:01]} 32. Qd2 {[%emt 0:00:37]} Nd3 {[%emt 0:00:11]} 33. Bxd3 {[%emt 0:00:20]} cxd3 {[%emt 0:00:01]} 34. Rbe1 {[%emt 0:00:10]} Rfxf5 {[%emt 0:00:38]} 35. Rxf5 Rxf5 {[%emt 0:00:01]} 36. Bxh6 {[%emt 0:00:34]} Qf7 {[%emt 0:00:04]} 37. Bf4 {[%emt 0:00:02]} Rxd5 {[%emt 0:00:00]} 38. Re4 {[%emt 0:00:32]} Bb7 {[%emt 0:01:30]} 39. Ra4 {[%emt 0:00:21]} a5 {[%emt 0:00:34]} 40. Ne3 {[%emt 0:00:07]} Rb5 {[%emt 0:00:01]} 41. Qxd3 {[%emt 0:00:11]} Rb2+ {[%emt 0:00:03]} 42. Kg1 {[%emt 0:00:01]} Qd7 {[%emt 0:00:18]} 43. Re4 {[%emt 0:00:19]} Qh3 {[%emt 0:00:36]} 44. Nc2 {[%emt 0:00:10]} Rb1+ {[%emt 0:00:36]} 45. Ne1 {[%emt 0:00:04]} Rxe1+ {[%emt 0:00:03]} 0-1